Cogmind - Beta 14 @@@ ROGUE MODE // 2024.11.18 @ 05:38:32 Player: Inverisimilidude Result: Destroyed by G-34 Mercenary with Small Laser Performance ------------- Evolutions (1) 500 Regions Visited (3) 600 Robots Destroyed (34) 170 Value Destroyed (836) 836 Prototype IDs (0) 0 Alien Tech Used (0) 0 Bonus (2) 2 TOTAL SCORE: 2108 Bonus ------- High Alert Combat Kills 2 Cogmind --------- Core Integrity 0/400 Matter 5/300 Energy 91/100 System Corruption 5% Temperature Cool (6) Movement Core (100) Ox1 Location -9/Materials Parts ------- > --- POWER (1) -------- (None) > --- PROPULSION (3) --- (None) > --- UTILITY (3) ------ (None) > --- WEAPON (2) ------- Improved Light Cannon > --- INVENTORY (5) ---- Wheel Medium Matter Pod (100) Improved Sensor Array Improved Sensor Array Peak State ------------ > --- POWER ------------ Ion Engine > --- PROPULSION ------- Aluminum Leg Aluminum Leg Aluminum Leg > --- UTILITY ---------- Small Storage Unit Improved Sensor Array Hardened Light Armor Plating > --- WEAPON ----------- Improved Light Cannon Flak Cannon > --- INVENTORY -------- Wheel Medium Matter Pod Improved Sensor Array Improved Sensor Array Light Assault Rifle Improved Light Cannon Improved Light Cannon Grenade Launcher [Rating: 16] Favorites ----------- Power Light Ion Engine Engine Light Ion Engine Propulsion Aluminum Leg Leg Aluminum Leg Wheel Wheel Utility Small Storage Unit Device Heat Sink Storage Small Storage Unit Protection Hardened Light Armor Plating Weapon Improved Light Cannon Energy Gun EM Pulse Gun Ballistic Gun Assault Rifle Ballistic Cannon Improved Light Cannon Launcher Grenade Launcher Build | -11 -10 -10 -9 ------- Run | Yrd Mat Min Mat Slots Evolved 2 | . . . 2 Power . | . . . . Propulsion 1 | . . . 1 Utility 1 | . . . 1 Weapon . | . . . . Parts Attached 29 | 6 10 1 12 Power 4 | 1 2 . 1 Engine 4 | 1 2 . 1 Core . | . . . . Reactor . | . . . . Propulsion 8 | 2 4 . 2 Treads . | . . . . Leg 6 | 2 3 . 1 Wheel 2 | . 1 . 1 Hover . | . . . . Flight . | . . . . Utility 4 | 1 1 . 2 Device 2 | . 1 . 1 Storage 1 | 1 . . . Processor . | . . . . Hackware . | . . . . Protection 1 | . . . 1 Artifact . | . . . . Weapon 13 | 2 3 1 7 Energy Gun 2 | 1 1 . . Energy Cannon . | . . . . Ballistic Gun 1 | 1 . . . Ballistic Cannon 6 | . 2 . 4 Launcher 4 | . . 1 3 Special Weapon . | . . . . Impact Weapon . | . . . . Slashing Weapon . | . . . . Piercing Weapon . | . . . . Special Melee Weapon . | . . . . Unidentified Prototypes . | . . . . Parts Lost 15 | . 4 . 11 Power 3 | . 2 . 1 Propulsion 4 | . 1 . 3 Utility 3 | . . . 3 Weapon 5 | . 1 . 4 Highest Loss Streak 4 | . 4 . 2 To Critical Strikes 1 | . . . 1 Average Slot Usage (%) 74 | . 85 100 59 Engine 9 | . 13 14 5 Leg 16 | . 24 28 8 Wheel 1 | . 3 . 1 Device 6 | . 1 14 6 Storage 11 | . 14 14 8 Protection 3 | . . . 7 Ballistic Gun 3 | . 14 . . Ballistic Cannon 13 | . 11 14 14 Launcher 6 | . . 14 6 Peak Build Rating 16 | 6 9 9 16 Average Rating 8 | 3 7 8 10 On Entrance 6 | . 6 9 9 Naked Turns . | . . . . Heaviest Build 26 | 12 15 16 26 Greatest Support 30 | 20 20 20 30 Greatest Overweight (x) 8 | . 1 . 8 Average Overweight (x) . | . . . 1 Largest Inventory Capacity 8 | 8 8 8 8 Average Capacity 7 | 6 8 8 7 Most Carried 8 | 7 8 8 8 Average Carried 7 | 4 6 7 7 Final Capacity 8 | 8 8 8 5 Final Carried 8 | 6 8 8 4 Class Distribution -------------------- 64% | Mutant 35% | Scavenger-Mutant Dominant Class ---------------- Mutant | -10/Materials Scavenger-Mutant | -10/Mines Mutant | -9/Materials Resources | -11 -10 -10 -9 ----------- Run | Yrd Mat Min Mat Matter Collected 764 | 220 265 55 224 Remotely . | . . . . Salvage Created 745 | . 198 28 519 Parts 52 | . 13 3 36 Haulers Intercepted 2 | . . . 2 Recyclers Shooed 2 | . . . 2 Parts Field Recycled . | . . . . Retrieved Matter . | . . . . Parts Self-Destructed . | . . . . Prevented . | . . . . Kills | -11 -10 -10 -9 ------- Run | Yrd Mat Min Mat Combat Hostiles Destroyed 24 | . 7 2 15 Guns 4 | . 4 . . Cannons 11 | . 3 1 7 AOE 9 | . . 1 8 Classes Destroyed 7 | . 3 . 4 Worker 4 | . 1 . 3 Builder 3 | . . . 3 Hauler 2 | . . . 2 Mechanic 1 | . . . 1 Swarmer 6 | . 3 . 3 Grunt 16 | . 4 2 10 Sentry 2 | . . . 2 Best Kill Streak 9 | . 3 1 9 Combat Bots Only 6 | . 3 1 6 Max Kills in Single Turn 3 | . 2 1 3 Gunslinging 1 | . 1 . . Exploded 2 | . . 1 2 Melee . | . . . . Uniques/NPCs Destroyed . | . . . . Combat | -11 -10 -10 -9 -------- Run | Yrd Mat Min Mat Hostile Shots Fired 223 | . 110 11 102 Missed 63 | . 34 4 25 Damage Taken 2144 | . 665 122 1357 Core 568 | . 149 17 402 Absorbed by Shields . | . . . . Core Remaining (%) 66 | 100 . 33 . Volleys Fired 74 | . 20 22 32 Largest 2 | . 2 2 2 Hottest 83 | . 65 69 83 Shots Fired 114 | . 40 23 51 Gun 24 | . 24 . . Cannon 70 | . 16 21 33 Launcher 20 | . . 2 18 Special . | . . . . Kinetic 90 | . 36 21 33 Thermal . | . . . . Explosive 20 | . . 2 18 Electromagnetic 4 | . 4 . . Robot Hit Streak 6 | . 3 6 6 Robot Miss Streak 8 | . 5 4 8 Penetration Max . | . . . . Secondary Targets 1 | . 1 . . Max Gunslinging Chain 1 | . 1 . . Shots Hit Robots 63 | . 16 13 34 Core Hits 64 | . 9 3 52 Critical Kills . | . . . . Critical Parts Destroyed . | . . . . Critical Strikes . | . . . . Melee Attacks . | . . . . Impact . | . . . . Slashing . | . . . . Piercing . | . . . . Sneak Attacks . | . . . . Combat Hostiles . | . . . . Follow-up Attacks . | . . . . Damage Inflicted 1883 | . 251 323 1309 Guns 124 | . 124 . . Cannons 869 | . 127 258 484 Explosions 890 | . . 65 825 Melee . | . . . . Ramming . | . . . . Kinetic 958 | . 216 258 484 Thermal . | . . . . Explosive 890 | . . 65 825 Electromagnetic 35 | . 35 . . Impact . | . . . . Slashing . | . . . . Piercing . | . . . . Highest Corruption 5 | . . . 5 Average Corruption 5 | . . . 5 Corruption Purged . | . . . . Corruption Blocked . | . . . . Effects 8 | . . . 8 Message Errors 1 | . . . 1 Matter Fused 1 | . . . 1 Heat Flow Errors 2 | . . . 2 Data Loss (minor) 3 | . . . 3 Misfires 1 | . . . 1 Overload Shots . | . . . . Overflow Damage 19 | . . 6 13 Projectiles 6 | . . 6 . Explosions 13 | . . . 13 Melee . | . . . . Knockbacks 18 | . 1 5 12 Impact . | . . . . Kinetic 17 | . 1 5 11 Secondary 1 | . . . 1 Self-Inflicted Damage 333 | . . 9 324 Shots 12 | . . 1 11 Rammed . | . . . . Targets Rammed . | . . . . Kicked . | . . . . Crushed . | . . . . Highest Temperature 224 | . 23 2 224 Average Temperature 33 | . 11 2 43 Received Heat Transfer 567 | . 126 63 378 Siege Activations . | . . . . Robots Corrupted . | . . . . Combat Hostiles . | . . . . Parts Fried . | . . . . Impact Corruptions . | . . . . Robots Melted . | . . . . Combat Hostiles . | . . . . Parts Melted . | . . . . Heat Transferred . | . . . . Parts Sabotaged . | . . . . Parts Stolen . | . . . . Parts Stripped . | . . . . Power Chain Reactions . | . . . . Alert | -11 -10 -10 -9 ------- Run | Yrd Mat Min Mat Peak Influence 425 | . 156 168 425 Initial 65 | . . 60 65 Average 126 | . 44 107 188 Maximum Alert Level 2 | . . . 2 Low Security (%) 81 | 100 100 100 63 Level 1 17 | . . . 36 Level 2 . | . . . . Level 3 . | . . . . Level 4 . | . . . . Level 5 . | . . . . High Security . | . . . . Max Security . | . . . . Squads Dispatched 3 | . 1 . 2 Investigation 2 | . 1 . 1 Extermination . | . . . . Reinforcement 1 | . . . 1 Assault . | . . . . Garrison . | . . . . Intercept . | . . . . Searches Triggered . | . . . . Construction Impeded 1 | . . . 1 Haulers Reinforced . | . . . . Active Scanning Responses . | . . . . Cargo Convoy Interrupts . | . . . . Stealth | -11 -10 -10 -9 --------- Run | Yrd Mat Min Mat Distress Signals 4 | . 3 . 1 Communications Jammed . | . . . . Distress Signals . | . . . . Times Spotted 37 | . 14 2 21 Peak Tracking Total 8 | . 7 2 8 Tactical Retreats 1 | . 1 . . Traps | -11 -10 -10 -9 ------- Run | Yrd Mat Min Mat Traps Triggered 2 | . 1 . 1 Indirectly . | . . . . Trap Hack Attempts . | . . . . Triggered . | . . . . Disarmed . | . . . . Reprogrammed . | . . . . Reused . | . . . . Traps Extracted . | . . . . Installed . | . . . . Triggered . | . . . . Machines | -11 -10 -10 -9 ---------- Run | Yrd Mat Min Mat Machines Disabled 9 | . 1 2 6 Max in Single Turn 3 | . 1 1 3 Machines Repaired . | . . . . Machines Dismantled . | . . . . Machines Sabotaged . | . . . . Overloaded Fab Kills . | . . . . Hacking | -11 -10 -10 -9 --------- Run | Yrd Mat Min Mat Machines Accessed 3 | . 2 . 1 Terminals 3 | . 2 . 1 Fabricators . | . . . . Repair Stations . | . . . . Recycling Units . | . . . . Scanalyzers . | . . . . Garrison Access . | . . . . Total Hacks 6 | . 5 . 1 Successful 5 | . 4 . 1 Failed 1 | . 1 . . Catastrophic . | . . . . Database Lockouts . | . . . . Manual 6 | . 5 . 1 Terminals 6 | . 5 . 1 Fabricators . | . . . . Repair Stations . | . . . . Recycling Units . | . . . . Scanalyzers . | . . . . Garrison Access . | . . . . Terminal Hacks 1 | . 1 . . Branch Access Points 1 | . 1 . . Fabricator Hacks . | . . . . Repair Station Hacks . | . . . . Recycling Unit Hacks . | . . . . Scanalyzer . | . . . . Garrison Access Hacks . | . . . . Unauthorized Hacks 4 | . 3 . 1 Terminals 4 | . 3 . 1 Assimilate 1 | . 1 . . Botnet 3 | . 2 . 1 Fabricators . | . . . . Repair Stations . | . . . . Recycling Units . | . . . . Scanalyzers . | . . . . Garrison Access . | . . . . Data Cores Recovered . | . . . . Used . | . . . . Hacking Detections 2 | . 2 . . Full Trace Events . | . . . . Feedback Events . | . . . . Feedback Blocked . | . . . . Robot Schematics Acquired . | . . . . Robots Built . | . . . . Authchips . | . . . . Time . | . . . . Total Robot Build Rating . | . . . . Part Schematics Acquired . | . . . . Parts Built . | . . . . Authchips . | . . . . Time . | . . . . Total Part Build Rating . | . . . . Parts Repaired . | . . . . Time . | . . . . Parts Recycled . | . . . . Recycled Matter . | . . . . Retrieved Matter . | . . . . Retrieved Components . | . . . . Parts Scanalyzed . | . . . . Part Schematics Acquired . | . . . . Parts Damaged . | . . . . Bothacking | -11 -10 -10 -9 ------------ Run | Yrd Mat Min Mat Used RIF Installer . | . . . . Robots Hacked . | . . . . Non-combat . | . . . . Combat . | . . . . Robot Hacks Applied . | . . . . Relay Couplers Released . | . . . . Fabnet Peak Effective % . | . . . . Robots Rewired . | . . . . Allies Hacked . | . . . . Hacks Repelled . | . . . . Allies | -11 -10 -10 -9 -------- Run | Yrd Mat Min Mat Total Allies 1 | . 1 . . Largest Group 1 | . 1 . . Highest-Rated Group 10 | . 10 . . Highest-Rated Ally 10 | . 10 . . Total Orders 1 | . 1 . . ROAM 1 | . 1 . . Ally Attacks . | . . . . Total Damage . | . . . . Kills . | . . . . Allies Corrupted . | . . . . Allies Melted . | . . . . Intel | -11 -10 -10 -9 ------- Run | Yrd Mat Min Mat Robot Analysis Total . | . . . . Derelict Logs Recovered 1 | . . 1 . Drone Launches . | . . . . Drone Recoveries . | . . . . Exploration | -11 -10 -10 -9 ------------- Run | Yrd Mat Min Mat Turns Passed 1562 | 80 389 314 779 Spaces Moved 858 | 67 248 196 347 Core 207 | 21 . . 186 Treads . | . . . . Legs 570 | 46 167 196 161 Wheels 81 | . 81 . . Hover . | . . . . Flight . | . . . . Fastest Speed 50 | 50 95 120 100 Average Speed 140 | 98 112 120 181 Slowest Speed 450 | 120 190 120 450 Overloaded Moves . | . . . . Propulsion Burnouts . | . . . . Robots Hopped . | . . . . Cave-ins Triggered 1 | . . . 1 Exploration Rate (%) 27 | 5 32 40 32 Regions Visited 3 Branch Regions 1 Pre-discovered Areas . | . . . . Known Exits Taken 1 | . 1 . . Unknown Exits Taken 2 | 1 . 1 . Scrap Searched . | . . . . Spaces Dug . | . . . . Terrain Destroyed 132 | . 1 13 118 Melee . | . . . . Projectile 2 | . 1 1 . AOE 130 | . . 12 118 Terrain Rammed . | . . . . Walls Destroyed . | . . . . Machines Disabled . | . . . . Actions | -11 -10 -10 -9 --------- Run | Yrd Mat Min Mat Total 1095 | 79 317 252 447 Wait 104 | . 29 32 43 Move 854 | 66 247 195 346 Hop . | . . . . Pick Up 19 | 7 7 1 4 Fast Attach 11 | 5 2 . 4 Attach 7 | 1 3 . 3 Detach . | . . . . Swap 11 | . 5 1 5 Drop 11 | . 4 1 6 Fire 74 | . 20 22 32 Melee . | . . . . Ram . | . . . . Kick . | . . . . Crush . | . . . . Escape Stasis 1 | . . . 1 Rewire 3 | . . . 3 Trap . | . . . . Miscellaneous . | . . . . Route ------- -11/Scrapyard -10/Materials (discovered 2 exits: *Mat / *Min) -10/Mines (discovered 2 exits: *Mat x2) -9/Materials History --------- Turn | Location | Event 15 | -11/Scrapyard | Discovered new exit (range 16) 81 | -11/Scrapyard | Entered Materials 203 | -10/Materials | Identified exit to Mines 270 | -10/Materials | Discovered new exit (range 10) 319 | -10/Materials | Build established: Mutant 359 | -10/Materials | Lost 4 parts (2p1n1w) 464 | -10/Materials | Core integrity fell below 50% 470 | -10/Materials | Entered Mines 494 | -10/Mines | Found a hidden stash of uninstalled traps 527 | -10/Mines | Received a Rocket Launcher from a helpful Derelict 621 | -10/Mines | Learned Materials stockpile data 663 | -10/Mines | Discovered new exit (range 12) 727 | -10/Mines | Build established: Scavenger-Mutant 775 | -10/Mines | Discovered new exit (range 9) 784 | -10/Mines | Entered Materials 784 | -9/Materials | Evolved 2 slots: Propulsion x1, Utility x1 1227 | -9/Materials | Crushed by falling debris 1309 | -9/Materials | Build established: Mutant 1533 | -9/Materials | Core integrity fell below 50% 1555 | -9/Materials | Core integrity fell below 20% 1563 | -9/Materials | Destroyed by G-34 Mercenary with Small Laser Last Messages --------------- 01440_ Material Processor disabled. 01447_ System corrupted: Component data lost. 01453_ The unstable cave ceiling collapses. 01503_ System corrupted: Heat flow error (+140). 01513_ Acquired Mni. Grenade Launcher. 01524_ Terminal disabled. 01532_ Fusion Modulator explodes. 01532_ Processing Tank disabled. 01532_ Atomic Centrifuge disabled. 01538_ System corrupted: Heat flow error (+252). 01540_ K-01 Serf collects debris. 01550_ W-16 Scout sends out distress signal. 01552_ Flak Cannon destroyed. 01552_ K-01 Serf destroyed. 01552_ Destroyed Sml. Matter Pod. 01552_ K-01 Serf destroyed. 01554_ G-34 Mercenary destroyed. 01556_ A-02 Transporter destroyed. 01558_ S-10 Pest destroyed. 01560_ Mni. Grenade Launcher destroyed. Map ----- +----------------------------------------------------+ | ????????????????????????????????????????????????? | | ????????????????????????????????????????????????? | | ????????????????????????????????????????????????? | | ????????????????????????????????????????????????? | | ????????????????????????????????????????????????? | | ????????????????????????????????????????????????? | | ????????????????????????????????????????????????? | | ????????????????????????????????????????????????? | | ????????????????????????????????????????????????? | | ????????????????????????????????????????????????? | | ????????????????????????????????????????????????? | | ????????????????????????????????????????????????? | | ????????????????????????????????????????????????? | | ????????????????????????????????????????????????? | | ???????????????????##???????????????????????????? | | ???????????????????+ ???????????????????????????? | | ???????????????????# ??????????????????????????? | | ???????????????????# g??????????????????????????? | | ???????????????????#k ??????????????????????????? | | ???????????????????# #######??????????????????? | | ???????????????????# g%# #??????????????????? | | ????????????##+##### wg# """#??????????????????? | | ????????????# !!/ [ " ###????????????????? | | ????????????# !!/g% #####??#######???? | | ????????????# T !! ## #### #???? | | ????????????+ @ ;;;; ;## " #???? | | ????????????# % #""" ##### | | ????????????# != * #""" # | | ????????????# ]%[ """ # | | ????????????# ]! "" # "" # | | ????????????# + % #""" # | | ????????????# %= # "" % "" # | | ????????????# [ # #"" # | | ????????????" % # # " # | | ????????????T ?# # # # | | ????????????" ?###+######+######+######+# | | ????????????# | | ?????????????? | | ???????????????? | | ???????????????????? ###+######## ####/###### | | ??????????????????????????????????# #???????? ? | | ??????????????????????????????????# #???????? ? | | ??????????????????????????????????# #???????? ? | | ??????????????????????????????????# #??????? ? | | ??????????????????????????????????# #??????? ? | | ??????????????????????????????????# #???????" ? | | ??????????????????????????????????# #???????" # | | ??????????????????????????????????# #???????" # | | ??????????????????????????????????# #???????#/# | | ??????????????????????????????????# #???????# # | +----------------------------------------------------+ Best States ------------- Heat Dissipation 38 Energy Generation 10 Energy Capacity 250 Matter Stores 300 Matter Capacity 300 Sight Range 16 Robot Scan Range 15 Terrain Scan Density 10 Armor Coverage 150 Evasion (%) 55 Item Schematics ----------------- None Robot Schematics ------------------ None Fabricated ------------ Nothing Alien Tech Used ----------------- None Achievements -------------- None Challenges ------------ None Game ------ Seed MagneticRelayDrive Manual? 0 Play Time 00:24:25 Cumulative 34.1 hours Start 2024.11.18 @ 05:15:17 End 2024.11.18 @ 05:38:32 Sessions 1 Manual Loads 0 Difficulty Rogue Special Mode None Game No. 41 Rogue 41 Adventurer 0 Explorer 0 Win Type - Total 0 Types 0/0/0/0/0/0/0/0/0 Lore% 20 Gallery% 28 Achievement% 27 Wizard Run 0 Options --------- Layout 1 ASCII 0 Keyboard 1 Movement Arrows Keybinds 0 Fullscreen 1 Font 24/Smallcaps Map View 50x35 Zoom Use 0% Tactical HUD 1 Map Filters NONE Filters NONE Steam 1 RUN: 1c1f777d-828f-4f39-90b6-ec3484423cc5